bitfinex-derivatives/quotes_SOLF0:USTF0_20251024
["timestamp","ask_amount","ask_price","bid_price","bid_amount"]
[1761308890390,4.06390324,192.78,192.73,4.6689]
[1761308890586,2.36875517,192.81,192.73,4.6689]
[1761308890785,8.79833013,192.8,192.73,4.6689]
[1761308890989,4.06724394,192.79,192.73,4.6689]
[1761308891186,4.82576054,192.85,192.7,2.36875517]
[1761308891388,13.62967948,192.84,192.7,2.36875517]
[1761308891591,8.80391894,192.83,192.7,2.36875517]
[1761308891790,8.80391894,192.82,192.75,4.6685]
[1761308891982,4.07001229,192.81,192.75,4.6685]
[1761308892183,4.07001229,192.8,192.75,4.6685]
[1761308892390,4.82576054,192.84,192.75,4.6685]
[1761308892585,8.75463263,192.83,192.75,4.6685]
[1761308892792,8.75463263,192.82,192.75,4.6685]
[1761308892985,8.75463263,192.81,192.75,4.6685]
[1761308893187,4.01617977,192.8,192.75,4.6685]
[1761308893385,4.01617977,192.79,192.76,4.6683]
[1761308893584,2.36875517,192.77,192.63,24.913]
[1761308893791,2.36875517,192.77,192.66,2.36875517]
[1761308893983,2.36875517,192.8,192.66,2.36875517]
[1761308894184,8.73885266,192.79,192.66,2.36875517]
[1761308894385,3.99756457,192.78,192.72,4.6693]
[1761308894580,2.36875517,192.8,192.72,4.6693]
[1761308894886,8.74466694,192.79,192.66,2.36875517]
[1761308895091,4.00023961,192.78,192.66,2.36875517]
[1761308895386,4.00322186,192.77,192.66,2.36875517]
[1761308895591,2.36875517,192.8,192.66,2.36875517]
[1761308895794,8.75150133,192.79,192.66,2.36875517]
[1761308895993,4.00338507,192.78,192.66,2.36875517]
[1761308896292,4.00338507,192.77,192.66,2.36875517]
[1761308896495,2.36875517,192.8,192.66,2.36875517]
[1761308896789,8.75968475,192.79,192.66,2.36875517]
[1761308896995,4.00715309,192.78,192.67,2.36875517]
[1761308897189,4.00715309,192.77,192.67,2.36875517]
[1761308897391,2.36875517,192.8,192.67,2.36875517]
[1761308897586,4.01133091,192.79,192.74,4.6688]
[1761308897791,4.01133091,192.78,192.74,4.6688]
[1761308897989,4.01133091,192.77,192.74,4.6688]
[1761308898193,2.36875517,192.8,192.74,4.6688]
[1761308898386,8.65775333,192.79,192.74,4.6688]
[1761308898591,4.0166881,192.78,192.74,4.6688]
[1761308898792,4.0166881,192.77,192.74,4.6688]
[1761308898991,4.0166881,192.76,192.74,4.6688]
[1761308899197,4.64106481,192.79,192.74,4.6688]
[1761308899494,4.01861581,192.78,192.74,4.6688]
[1761308899699,4.01861581,192.77,192.74,4.6688]
[1761308899898,4.01861581,192.76,192.74,4.6688]
[1761308900097,4.64344472,192.79,192.74,4.6688]
[1761308900295,4.01875055,192.78,192.74,4.6688]
[1761308900500,4.01875055,192.77,192.74,4.6688]
[1761308900701,4.01875055,192.76,192.74,4.6688]
[1761308900900,4.64399448,192.79,192.74,4.6688]
[1761308901098,4.01922835,192.78,192.74,4.6688]
[1761308901306,4.01922835,192.77,192.74,4.6688]
[1761308901502,4.01922835,192.76,192.74,4.6688]
[1761308901699,4.64461944,192.79,192.74,4.6688]
[1761308902006,4.01977049,192.78,192.74,4.6688]
[1761308902304,4.01977049,192.77,192.74,4.6688]
[1761308902506,2.36875517,192.8,192.74,4.6688]
[1761308902699,4.01990965,192.79,192.74,4.6688]
[1761308902899,4.01990965,192.78,192.74,4.6688]
[1761308903095,4.01990965,192.77,192.74,4.6688]
[1761308903304,2.36875517,192.8,192.74,4.6688]
[1761308903504,4.0200726,192.79,192.74,4.6688]
[1761308903702,4.0200726,192.78,192.74,4.6688]
[1761308903902,4.0200726,192.77,192.74,4.6688]
[1761308904102,2.36875517,192.8,192.74,4.6688]
[1761308904304,259.6940192,193.16,192.8,4.6675]
[1761308904305,4.01090041,192.83,192.8,4.6675]
[1761308904502,7.19451571,192.9,192.77,2.36875517]
[1761308904802,8.66102575,192.89,192.82,4.6667]
[1761308905003,8.66102575,192.88,192.77,2.36875517]
[1761308905206,4.01828291,192.87,192.77,2.36875517]
[1761308905402,4.63928919,192.9,192.83,4.6667]
[1761308905605,3.95968248,192.89,192.83,4.6667]
[1761308905812,7.00789866,192.92,192.83,4.6667]
[1761308906009,8.59847714,192.91,192.83,4.6667]
[1761308906205,2.36875517,192.92,192.83,4.6667]
[1761308906206,3.95933365,192.9,192.83,4.6667]
[1761308906412,3.95933365,192.89,192.83,4.6667]
[1761308906710,4.63689775,192.91,192.81,4.6672]
[1761308907013,2.36875517,192.87,192.74,73.75754317]
[1761308907210,2.36875517,192.87,192.78,4.6679]
[1761308907608,2.36875517,192.87,192.75,62.0]
[1761308907802,2.36875517,192.87,192.79,4.6675]
[1761308908010,7.00520099,192.9,192.77,2.36875517]
[1761308908206,3.9570205,192.89,192.77,2.36875517]
[1761308908406,3.9570205,192.88,192.77,2.36875517]
[1761308908609,3.95576059,192.9,192.77,2.36875517]
[1761308908810,2.36875517,192.92,192.77,2.36875517]
[1761308909009,3.95576059,192.91,192.77,2.36875517]
[1761308909212,3.95576059,192.9,192.82,4.6668]
[1761308909410,3.95438938,192.91,192.77,2.36875517]
[1761308909610,3.95398936,192.92,192.8,2.36875517]
[1761308909808,2.36875517,192.93,192.8,2.36875517]
[1761308909809,3.95398936,192.91,192.83,4.6666]
[1761308910008,3.95398936,192.92,192.83,4.6666]
[1761308910210,3.95398936,192.91,192.83,4.6666]
[1761308910418,3.95398936,192.92,192.83,4.6666]
[1761308911009,4.82576054,192.97,192.83,4.6666]
[1761308911010,8.58442213,192.96,192.83,2.36875517]
[1761308911209,2.36875517,193.01,192.86,2.36875517]
[1761308911410,3.95168069,193.0,192.86,2.36875517]
[1761308911609,4.62582934,193.03,192.89,4.6653]
[1761308911610,3.95168069,192.99,192.89,4.6653]
[1761308911806,3.95168069,193.02,192.89,4.6653]
[1761308912009,6.32043586,193.01,192.89,4.6653]
[1761308912214,3.95168069,193.0,192.89,4.6653]
[1761308913214,3.95168069,193.0,192.87,4.6658]
[1761308913921,3.95168069,193.0,192.88,4.6654]
[1761308914414,2.36875517,193.01,192.88,4.6654]
[1761308914614,2.36875517,192.98,192.88,4.6654]
[1761308915010,4.62582934,193.03,192.88,4.6654]
[1761308915316,2.36875517,192.99,192.88,4.6654]
[1761308916024,2.36875517,192.99,192.89,4.6651]
[1761308917215,3.94132324,193.02,192.86,2.36875517]
[1761308917419,3.94132324,193.03,192.92,4.6646]
[1761308917622,6.94132324,193.04,192.89,2.36875517]
[1761308917820,6.94132324,193.04,192.8,74.97405517]
[1761308917821,6.94132324,193.04,192.87,43.18]
[1761308918123,3.0,193.04,192.92,2.36875517]
[1761308918323,2.36875517,193.02,192.89,2.36875517]
[1761308918821,2.36875517,193.02,192.89,4.6651]
[1761308919020,2.36875517,192.99,192.89,4.6651]
[1761308919222,3.0,193.04,192.89,4.6651]
[1761308919423,2.36875517,192.99,192.89,4.6651]
[1761308921624,2.36875517,193.0,192.89,4.6651]
[1761308921825,2.36875517,193.0,192.86,7.03465517]
[1761308922021,2.36875517,192.97,192.83,2.36875517]
[1761308922230,2.36875517,192.94,192.8,2.36875517]
[1761308922936,2.36875517,192.94,192.84,4.6665]
[1761308925828,2.36875517,193.0,192.77,2.36875517]
[1761308925829,2.36875517,192.91,192.77,2.36875517]
[1761308926328,2.36875517,193.0,192.77,2.36875517]
[1761308926547,4.81397932,193.02,192.77,2.36875517]
[1761308926738,2.36875517,192.91,192.74,73.75754317]
[1761308926927,2.36875517,192.88,192.74,76.12629834]
[1761308927244,2.36875517,192.88,192.75,4.6685]
[1761308928327,2.36875517,192.87,192.75,4.6685]
[1761308928837,1.51462683,192.85,192.76,1.51462683]
[1761308929038,1.51462683,192.83,192.74,75.27217]
[1761308929334,1.51462683,192.81,192.74,73.75754317]
[1761308929537,1.51462683,192.79,192.7,1.51462683]
[1761308930333,1.51462683,192.79,192.7,6.18432683]
[1761308930530,1.51462683,192.79,192.7,4.6697]
[1761308930728,1.51462683,192.79,192.71,1.51462683]
[1761308931038,1.51462683,192.81,192.73,1.51462683]
[1761308931742,1.51462683,192.81,192.71,4.6695]
[1761308931928,1.51462683,192.81,192.71,1.51462683]
[1761308932440,1.51462683,192.81,192.73,1.51462683]
[1761308933131,1.51462683,192.81,192.64,6.31316092]
[1761308933325,1.51462683,192.79,192.7,1.51462683]
[1761308935136,9.1670884,192.89,192.7,1.51462683]
[1761308935435,1.51462683,192.79,192.7,1.51462683]
[1761308938935,1.51462683,192.79,192.72,1.51462683]
[1761308940035,1.51462683,192.79,192.67,4.6706]
[1761308940237,1.51462683,192.79,192.71,1.51462683]
[1761308940533,1.51462683,192.79,192.7,1.51462683]
[1761308941631,1.51462683,192.81,192.73,1.51462683]
[1761308942039,14.02,192.9,192.73,1.51462683]
[1761308942240,1.51462683,192.82,192.73,1.51462683]
[1761308943643,1.51462683,192.84,192.75,1.51462683]
[1761308944231,1.51462683,192.82,192.75,1.51462683]
[1761308944643,10.44,192.91,192.75,1.51462683]
[1761308944840,1.51462683,192.83,192.75,1.51462683]
[1761308945042,1.51462683,192.84,192.75,1.51462683]
[1761308945845,10.44,192.91,192.72,4.6692]
[1761308946842,10.44,192.91,192.63,43.22]
[1761308946843,39.423,193.12,192.73,4.669]
[1761308947038,17.77,193.03,192.64,15.55]
[1761308947445,17.77,193.03,192.63,43.22]
[1761308947944,17.77,193.03,192.74,4.6688]
[1761308948132,15.55,192.97,192.74,4.6688]
[1761308950240,15.55,192.97,192.65,9.3423]
[1761308950748,15.55,192.97,192.74,4.6687]
[1761308952546,15.55,192.95,192.74,4.6687]
[1761308953646,27.93,192.95,192.74,4.6687]
[1761308956163,27.93,192.95,192.75,4.6685]
[1761308956955,15.55,192.95,192.75,4.6685]
[1761308957149,15.55,193.03,192.76,4.6682]
[1761308957350,15.55,193.01,192.76,4.6682]
[1761308958257,20.55,193.01,192.76,4.6682]
[1761308958651,20.55,193.01,192.79,4.6676]
[1761308958854,15.55,193.01,192.79,4.6676]
[1761308960260,15.55,193.01,192.8,4.6673]
[1761308960459,12.36,193.02,192.7,15.55]
[1761308961054,12.36,193.02,192.82,4.6669]
[1761308961251,12.36,193.02,192.73,15.55]
[1761308961452,12.36,193.02,192.85,4.6662]
[1761308963558,15.55,193.16,192.75,15.55]
[1761308963764,5.0,193.09,192.75,15.55]
[1761308964164,5.0,193.09,192.87,4.6656]
[1761308966567,5.0,193.09,192.78,9.3358]
[1761308966568,20.55,193.09,192.85,4.6661]
[1761308966766,15.55,193.09,192.85,4.6661]
[1761308967369,15.55,193.09,192.86,4.6659]
[1761308967568,15.55,193.09,192.78,9.3358]
[1761308967770,15.55,193.11,192.78,24.8858]
[1761308968469,15.55,193.11,192.87,4.6656]
[1761308969374,15.55,193.11,192.85,4.6662]
[1761308969679,18.55,193.04,192.85,4.6662]
[1761308970480,3.0,193.04,192.85,4.6662]
[1761308971374,3.0,193.04,192.79,15.55]
[1761308971580,3.0,193.04,192.81,49.78]
[1761308972172,3.0,193.04,192.84,9.3328]
[1761308973267,3.0,193.04,192.82,4.667]
[1761308974568,3.0,193.04,192.83,62.0]
[1761308978787,3.0,193.04,192.82,4.667]
[1761308978988,3.0,193.04,192.77,4.6681]
[1761308979282,3.0,193.04,192.78,43.16]
[1761308979478,3.0,193.04,192.8,4.6674]
[1761308979882,3.0,193.04,192.8,20.2174]
[1761308980083,3.0,193.04,192.84,4.6664]
[1761308980687,3.0,193.04,192.84,20.2164]
[1761308981684,3.0,193.04,192.88,4.6654]
[1761308981879,3.0,193.04,192.89,62.0]
[1761308982684,3.0,193.04,192.89,77.22946943]
[1761308982885,3.0,193.04,192.9,43.18]
[1761308985990,3.0,193.04,192.91,62.0]
[1761308987792,3.0,193.04,192.68,34.23]
[1761308987993,3.0,193.04,192.7,34.23]
[1761308988293,3.0,193.04,192.76,34.23]
[1761308988485,3.0,193.04,192.76,49.69848525]
[1761308988887,3.0,193.04,192.77,15.55]
[1761308989088,3.0,193.04,192.77,20.2182]
[1761308990796,3.0,193.04,192.79,20.2175]
[1761308992591,3.0,193.04,192.79,4.6675]
[1761308993187,3.0,193.04,192.78,43.4]
[1761308994096,3.0,193.04,192.79,4.6677]
[1761308994298,3.0,193.04,192.8,62.0]
[1761308994697,3.0,193.04,192.81,4.6672]
[1761308995995,3.0,193.04,192.8,62.0]
[1761308996197,3.0,193.04,192.8,49.78]
[1761308996401,3.0,193.04,192.82,15.55]
[1761308996593,3.0,193.04,192.84,4.6665]
[1761308996897,3.0,193.04,192.85,43.46]
[1761308998198,3.0,193.04,192.86,4.666]
[1761308999099,3.0,193.04,192.87,62.0]
[1761309000092,3.0,193.04,192.84,43.44]
[1761309000497,3.0,193.04,192.8,4.6673]
[1761309000799,3.0,193.04,192.51,72.7147]
[1761309001106,18.55,193.04,192.57,4.6729]
[1761309001296,18.55,193.04,192.41,72.7531]
[1761309001501,15.55,193.04,192.43,72.7445]
[1761309001802,12.5,193.86,192.39,75.2384]
[1761309001803,28.78311891,193.26,192.92,124.0]
[1761309001990,331.54,195.02,193.02,72.5206]
[1761309001991,41.72043689,193.78,193.02,72.5206]
[1761309002195,51.30648164,194.04,193.12,72.4824]
[1761309002494,40.91648164,194.04,193.26,72.4317]
[1761309002695,124.0,194.2,193.17,217.3959]
[1761309002901,119.36,194.29,193.1,55.4]
[1761309003101,119.36,194.29,193.64,72.2906]
[1761309003399,65.00560662,194.53,193.74,76.8954]
[1761309003592,38.72,194.52,193.81,72.2274]
[1761309003794,5.193,194.74,193.91,72.19]
[1761309003989,61.74,194.73,193.99,72.1598]
[1761309004197,196.51364992,194.79,193.95,72.175]
[1761309004391,196.51364992,194.79,194.1,72.1172]
[1761309004604,196.51364992,194.79,194.04,72.1383]
[1761309004899,196.51364992,194.79,193.98,216.4905]
[1761309004900,196.51364992,194.79,194.12,72.1109]
[1761309005200,62.0,194.78,194.15,72.0975]
[1761309005394,196.51364992,194.79,194.19,72.086]
[1761309005601,119.32,194.79,194.25,72.0621]
[1761309005803,90.05925824,194.91,194.25,72.0605]
[1761309005999,78.19364992,195.0,194.27,72.0549]
[1761309006196,63.04622672,194.93,194.4,124.0]
[1761309006605,63.04622672,194.93,194.8,62.0]
[1761309006808,63.04622672,194.93,194.8,3.9367033]
[1761309007100,63.04622672,194.93,194.46,68.82]
[1761309007302,80.48,195.18,194.69,124.0]
[1761309007507,50.24846349,194.82,194.69,124.0]
[1761309007698,102.92486656,195.33,194.81,62.0]
[1761309007895,40.79791819,195.19,194.81,62.0]
[1761309008095,40.79791819,195.25,194.81,62.0]
[1761309008303,40.79791819,195.25,194.82,124.0]
[1761309008806,84.66,195.35,194.82,124.0]
[1761309009002,40.79791819,195.41,194.82,118.84685958]
[1761309009307,40.79791819,195.64,194.82,118.84685958]
[1761309009499,40.79791819,195.64,194.69,84.66]
[1761309009699,140.79791819,195.69,194.69,84.66]
[1761309009899,100.0,195.69,194.7,84.56]
[1761309010209,100.0,195.69,195.07,124.0]
[1761309010407,100.0,195.69,195.08,30.5]
[1761309010902,100.0,195.69,194.25,118.94]
[1761309011100,100.0,195.69,194.26,28.98]
[1761309011303,84.54,195.68,194.26,338.98]
[1761309011502,100.0,195.69,194.26,338.98]
[1761309011702,100.0,195.69,194.93,124.0]
[1761309012005,71.6597,195.35,193.64,42.27435074]
[1761309012201,5.193,196.23,193.65,84.48]
[1761309012398,124.0,195.34,193.66,310.0]
[1761309012597,124.0,195.34,193.65,84.48]
[1761309012810,76.85286275,197.82,193.63,42.27435074]
[1761309012811,71.7063,195.22,193.88,124.0]
[1761309013002,71.778,195.03,193.88,124.0]
[1761309013200,71.778,195.03,193.63,42.27435074]
[1761309013201,71.8783,194.76,194.21,5.0]
[1761309013402,71.9656,194.52,193.61,42.27435074]
[1761309013608,84.38,194.51,193.61,42.27435074]
[1761309013815,71.9457,194.57,193.61,42.27435074]
[1761309014010,71.7869,195.01,193.61,42.27435074]
[1761309014210,50.69314475,194.81,193.61,42.27435074]
[1761309014402,50.69314475,194.81,193.91,62.0]
[1761309014608,50.69314475,194.81,193.94,42.27435074]
[1761309014803,71.7724,195.04,193.95,208.38]
[1761309015009,4.6176,194.89,193.95,208.38]
[1761309015205,15.30865195,194.89,193.95,84.38]
[1761309015409,4.6202,194.78,193.95,100.04739952]
[1761309015604,71.843,194.85,193.95,100.04739952]
[1761309015804,71.7619,195.07,193.99,42.27435074]
[1761309016010,71.8426,194.85,193.96,124.0]
[1761309016313,15.57342289,194.89,193.95,100.04739952]
[1761309016503,71.7901,195.0,193.96,84.38]
[1761309016706,84.38,195.03,193.96,84.38]
[1761309016905,4.6198,194.8,194.0,124.0]
[1761309017213,23.26,195.06,194.04,42.27435074]
[1761309017409,50.50499102,195.15,194.04,42.27435074]
[1761309017718,124.0,195.05,194.04,42.27435074]
[1761309018018,124.0,195.05,194.29,62.0]
[1761309018416,90.54372638,198.07,194.29,68.9]
[1761309018613,84.36,195.42,194.29,68.9]
[1761309018814,124.0,195.3,194.41,124.0]
[1761309019315,263.36,195.91,194.36,202.86]
[1761309019517,84.36,195.51,194.36,202.86]
[1761309019716,124.0,195.5,194.36,118.5]
[1761309019921,124.0,195.5,194.37,84.36]
[1761309020109,71.634,195.42,194.51,4.99973127]
[1761309020319,5.0,195.11,194.5,4.99973127]
[1761309020525,5.0,195.13,194.52,124.0]
[1761309020728,5.0,195.26,194.52,158.23]
[1761309020925,5.0,195.26,194.52,124.0]
[1761309021128,4.6128,195.09,194.36,118.5]
[1761309021330,5.0,195.26,194.54,62.0]
[1761309021628,214.7179,195.59,194.54,62.0]
[1761309021629,4.6102,195.2,194.57,124.0]
[1761309021834,4.6102,195.2,194.51,106.80065945]
[1761309022028,44.28,195.28,194.51,106.80065945]
[1761309022029,257.37210393,195.53,194.51,106.80065945]
[1761309022222,189.62,195.47,194.52,124.0]
[1761309022421,124.0,195.47,194.53,34.23]
[1761309022625,4.6059,195.38,194.53,34.23]
[1761309023128,4.604,195.47,194.53,34.23]
[1761309023334,133.89825105,195.53,194.8,124.0]
[1761309023531,71.608,195.49,194.41,34.23]
[1761309023734,71.6497,195.38,194.41,34.23]
[1761309024033,71.7365,195.14,194.27,52.02997015]
[1761309024237,4.6179,194.88,194.29,42.27435074]
[1761309024527,21.54,195.18,194.29,124.0]
[1761309024731,4.6117,195.14,194.29,124.0]
[1761309024923,71.5971,195.52,194.68,62.0]
[1761309025128,4.6079,195.3,194.69,34.23]
[1761309025332,124.0,195.51,194.69,34.23]
[1761309025528,124.0,195.51,194.71,124.0]
[1761309025722,71.5523,195.64,194.72,34.23]
[1761309025925,71.5838,195.56,194.72,34.23]
[1761309026126,4.6039,195.47,194.72,34.23]
[1761309026326,71.556,195.63,194.72,34.23]
[1761309026531,71.5495,195.65,194.53,84.24]
[1761309026532,71.6042,195.5,194.53,84.24]
[1761309026736,71.5719,195.59,194.72,34.23]
[1761309026937,214.4825,195.8,194.72,34.23]
[1761309026938,214.4825,195.8,194.72,137.6949545]
[1761309027235,124.0,195.76,194.74,34.23]
[1761309027433,118.3,196.17,194.74,34.23]
[1761309027434,84.2,195.88,194.74,34.23]
[1761309027928,15.94417997,195.59,195.0,15.94417997]
[1761309028131,15.94417997,195.53,195.2,15.94417997]
[1761309028328,15.94417997,196.0,195.39,62.0]
[1761309028639,15.94417997,195.72,195.39,62.0]
[1761309028832,4.5943,195.88,195.44,15.94417997]
[1761309029132,71.3005,196.34,195.56,15.94417997]
[1761309029332,15.94417997,196.16,195.5,15.94417997]
[1761309029530,71.1595,196.72,195.87,15.94417997]
[1761309029834,71.1195,196.83,195.86,77.21142939]
[1761309030022,71.1092,196.86,196.0,124.0]
[1761309030223,15.94417997,196.46,196.04,15.94417997]
[1761309030425,15.94417997,196.25,195.71,84.12]
[1761309030629,15.94417997,196.25,195.25,63.77671988]
[1761309030630,15.94417997,196.08,195.46,84.12]
[1761309030831,15.94417997,195.92,195.46,100.06417997]
[1761309031127,30.74,196.1,195.04,118.14]
[1761309031331,63.77671988,196.0,195.05,34.23]
[1761309031533,71.3261,196.26,195.06,84.06]
[1761309031837,71.3284,196.26,195.33,62.0]
[1761309032030,187.77671988,196.25,195.33,62.0]
[1761309032232,15.94417997,196.25,195.51,15.94417997]
[1761309032434,118.06,196.45,195.51,76.41436762]
[1761309032627,15.94417997,195.77,195.51,76.41436762]
[1761309032834,124.0,196.21,195.51,76.41436762]
[1761309033137,15.94417997,195.84,195.51,76.41436762]
[1761309033435,15.94417997,195.7,195.51,76.41436762]
[1761309033638,71.4899,195.82,195.21,15.94417997]
[1761309033827,15.94417997,195.83,195.14,124.0]
[1761309034031,71.4398,195.95,195.32,15.94417997]
[1761309034032,15.94417997,195.76,195.32,15.94417997]
[1761309034233,71.458,195.9,195.21,84.0]
[1761309034234,71.4593,195.9,195.21,84.0]
[1761309034434,71.4465,195.93,195.44,15.94417997]
[1761309034640,71.4412,195.95,195.41,15.94417997]
[1761309034836,71.4618,195.89,195.34,15.94417997]
[1761309035040,71.454,195.91,192.82,251.0]
[1761309035239,71.4422,195.95,195.0,15.94417997]
[1761309035536,71.3776,196.12,195.53,62.0]
[1761309035740,71.3755,196.13,195.53,62.0]
[1761309036040,15.94417997,195.73,195.45,104.5828292]
[1761309036232,15.94417997,195.73,195.05,77.3377726]
[1761309036233,15.94417997,195.75,195.05,77.3377726]
[1761309036432,71.5096,195.76,195.05,77.3377726]
[1761309036633,71.4712,195.87,195.33,15.94417997]
[1761309036832,4.5945,195.87,195.34,15.94417997]
[1761309037038,71.4219,196.0,195.52,15.94417997]
[1761309037243,15.94417997,195.81,195.47,104.64621007]
[1761309037439,71.4771,195.85,195.47,104.64621007]
[1761309037639,15.94417997,195.91,195.54,15.94417997]
[1761309037941,71.3881,196.1,195.51,15.94417997]
[1761309038143,15.94417997,196.11,195.52,83.92]
[1761309038337,15.94417997,196.25,195.52,83.92]
[1761309038338,71.3269,196.26,195.52,83.92]
[1761309038640,71.2438,196.49,196.01,15.94417997]
[1761309038840,142.3577,196.67,196.25,62.0]
[1761309039041,71.1623,196.72,196.25,62.0]
[1761309039042,15.94417997,196.49,196.25,62.0]
[1761309039340,15.94417997,196.47,196.02,124.0]
[1761309039542,15.94417997,196.21,196.02,15.50347963]
[1761309039741,15.94417997,196.45,195.96,77.02305585]
[1761309039943,71.1815,196.66,196.06,4.99973127]
[1761309040143,213.5994,196.61,195.96,77.02305585]
[1761309040340,14.99471165,196.61,195.96,15.04444916]
[1761309040642,213.7566,196.47,195.6,13.38]
[1761309040850,71.2709,196.42,195.77,15.94417997]
[1761309041040,71.2435,196.49,195.75,15.94417997]
[1761309041343,71.297,196.35,195.76,20.42]
[1761309041648,71.3296,196.26,195.57,117.8]
[1761309041948,4.5838,196.33,195.58,124.0]
[1761309042140,15.11835593,196.61,196.13,62.0]
[1761309042444,4.5742,196.74,196.13,62.0]
[1761309042647,71.0799,196.95,196.13,15.31279875]
[1761309042846,15.94417997,197.0,196.34,15.94417997]
[1761309043047,83.8,197.01,196.14,124.0]
[1761309043342,63.77671988,197.0,196.14,124.0]
[1761309043544,15.94417997,196.5,195.75,15.94417997]
[1761309043748,71.263,196.44,195.94,4.99931245]
[1761309043946,15.94417997,196.07,195.71,52.02997015]
[1761309044146,15.94417997,195.99,195.73,42.27435074]
[1761309044338,71.3542,196.19,195.73,42.27435074]
[1761309044339,15.94417997,195.9,195.73,42.27435074]
[1761309044539,71.3551,196.19,195.73,42.27435074]
[1761309044838,15.43444436,196.44,195.8,15.94417997]
[1761309045147,15.43444436,196.44,195.73,42.27435074]
[1761309045148,71.2697,196.42,195.73,42.27435074]
[1761309045343,71.2624,196.44,195.74,124.0]
[1761309045344,15.94417997,196.22,195.74,124.0]
[1761309045543,15.24117777,196.54,195.75,83.74]
[1761309045744,71.2263,196.54,195.95,4.99931245]
[1761309045945,15.94417997,196.31,195.87,78.68307569]
[1761309046144,83.74,196.65,195.87,78.68307569]
[1761309046345,15.94417997,196.49,195.87,78.68307569]
[1761309046541,15.10534595,196.58,196.0,124.0]
[1761309046744,15.94417997,196.75,196.17,15.94417997]
[1761309047048,51.62917664,197.03,196.0,124.0]
[1761309047248,213.3222,196.87,196.0,124.0]
[1761309047442,213.3821,196.82,196.01,15.94417997]
[1761309047649,213.3821,196.82,195.88,117.6]
[1761309047650,15.94417997,196.51,195.88,117.6]
[1761309047845,71.1287,196.81,196.15,15.94417997]
[1761309048042,15.94417997,196.5,196.08,83.7]
[1761309048246,71.1547,196.74,196.08,83.7]
[1761309048446,15.94417997,196.59,196.17,15.94417997]
[1761309048652,15.94417997,196.48,195.98,15.94417997]
[1761309048952,15.94417997,196.26,195.88,117.6]
[1761309049151,4.5833,196.35,196.01,5.0]
[1761309049346,87.18617997,196.5,195.88,117.6]
[1761309049347,71.2696,196.43,195.88,117.6]
[1761309049552,15.94417997,196.37,195.99,15.94417997]
[1761309049751,15.94417997,196.22,195.88,117.6]
[1761309050052,15.94417997,196.12,195.71,14.97024602]
[1761309050256,15.94417997,196.25,195.71,14.97024602]
[1761309050257,15.94417997,196.07,195.71,14.97024602]
[1761309050442,87.27677997,196.25,195.71,14.97024602]
[1761309050642,15.94417997,196.0,195.47,222.14621007]
[1761309050842,15.94417997,195.86,195.47,104.64621007]
[1761309051046,71.4268,195.99,195.47,120.31299985]
[1761309051246,154.9807,196.23,195.47,120.31299985]
[1761309051448,31.45135484,196.25,195.5,15.94417997]
[1761309051647,71.2956,196.35,195.47,120.31299985]
[1761309051648,71.2992,196.34,195.47,120.31299985]
[1761309051847,15.94417997,196.25,195.47,120.31299985]
[1761309052053,83.64,196.34,195.65,62.0]
[1761309052248,71.299,196.34,195.65,62.0]
[1761309052446,15.38575721,196.35,195.51,124.0]
[1761309052645,9.60631903,196.29,195.52,261.16]
[1761309052847,9.60631903,196.05,195.47,120.31299985]
[1761309053047,9.60631903,196.24,195.58,9.60631903]
[1761309053247,4.5876,196.17,195.67,9.60631903]
[1761309053457,9.60631903,195.97,195.49,83.66]
[1761309053655,5.0,196.17,195.58,9.60631903]
[1761309053852,9.60631903,196.17,195.59,124.0]
[1761309054046,71.3676,196.16,195.47,120.31299985]
[1761309054247,9.60631903,196.03,195.64,9.60631903]